fUST/lending_fUST_20250614
["ID","MTS","AMOUNT","RATE_DAILY","PERIOD"]
[365767825,1749895846767,-460.0,0.00021643,4]
[365767826,1749895846776,-460.0,0.00021643,4]
[365767827,1749895846785,-460.0,0.00021643,2]
[365767828,1749895846795,-460.0,0.00021643,4]
[365767829,1749895846804,-460.0,0.00021643,4]
[365767830,1749895846814,-460.0,0.00021643,4]
[365767831,1749895846823,-460.0,0.00021643,4]
[365767832,1749895846833,-460.0,0.00021643,4]
[365767833,1749895846842,-179.48452792,0.00021643,4]
[365767834,1749895846852,-283.77180286,0.00021643,4]
[365767835,1749895846862,-335.7,0.00021643,4]
[365767836,1749895846871,-948.98,0.00021643,4]
[365767837,1749895846880,-460.0,0.00021643,4]
[365767838,1749895846890,-460.0,0.00021643,4]
[365767839,1749895846899,-593.17,0.00021643,4]
[365767840,1749895846909,-460.0,0.00021643,4]
[365767841,1749895846918,-504.66,0.00021643,4]
[365767842,1749895846928,-460.0,0.00021643,4]
[365767843,1749895846937,-460.0,0.00021643,4]
[365767844,1749895846946,-460.0,0.00021643,4]
[365767845,1749895846955,-460.0,0.00021643,4]
[365767846,1749895846966,-173.23,0.00021643,4]
[365767847,1749895846975,-460.0,0.00021643,4]
[365767848,1749895846985,-168.0,0.00021645,2]
[365767849,1749895846994,-694.13581575,0.00021646,2]
[365767850,1749895847008,-168.0,0.00021665,2]
[365767851,1749895847018,-168.0,0.00021694,2]
[365767852,1749895847028,-168.0,0.000217,2]
[365767853,1749895847037,-302.4894209,0.00021728,5]
[365767854,1749895847047,-399.5332634,0.00021729,2]
[365767855,1749895847056,-168.0,0.00021756,2]
[365767856,1749895847066,-151.0,0.000218,2]
[365767857,1749895847075,-151.0,0.000218,2]
[365767858,1749895847084,-420.0,0.00021863,2]
[365767859,1749895847094,-302.4894209,0.00021866,6]
[365767860,1749895847103,-160.0,0.0002189,2]
[365767861,1749895847113,-229.82479369,0.0002189,2]
[365767862,1749895847124,-845.10789306,0.0002189,2]
[365767863,1749895847134,-160.0,0.0002189,2]
[365767864,1749895847143,-160.0,0.00021891,2]
[365767865,1749895847154,-498.87,0.00021917,4]
[365767866,1749895847167,-151.0,0.00021917,2]
[365767867,1749895847177,-151.0,0.00021917,2]
[365767868,1749895847187,-163.236733,0.00021917,2]
[365767869,1749895847197,-151.0,0.00021917,2]
[365767870,1749895847207,-460.0,0.00021917,4]
[365767871,1749895847217,-151.0,0.00021917,2]
[365767872,1749895847227,-151.0,0.00021917,2]
[365767873,1749895847236,-460.0,0.00021917,4]
[365767874,1749895847245,-460.0,0.00021917,2]
[365767875,1749895847256,-460.0,0.00021917,4]
[365767876,1749895847266,-460.0,0.00021917,4]
[365767877,1749895847277,-426.976756,0.00021917,2]
[365767878,1749895847287,-426.976756,0.00021917,2]
[365767879,1749895847296,-948.98,0.00021917,4]
[365767880,1749895847306,-460.0,0.00021917,4]
[365767881,1749895847315,-460.0,0.00021917,4]
[365767882,1749895847324,-460.0,0.00021917,4]
[365767883,1749895847335,-504.66,0.00021917,4]
[365767884,1749895847344,-460.0,0.00021917,4]
[365767885,1749895847354,-460.0,0.00021917,4]
[365767886,1749895847363,-460.0,0.00021917,4]
[365767887,1749895847372,-302.4894209,0.00022003,6]
[365767888,1749895847382,-302.4894209,0.00022141,6]
[365767889,1749895847400,-168.0,0.00022181,2]
[365767890,1749895847409,-151.0,0.00022191,7]
[365767891,1749895847419,-151.0,0.00022191,7]
[365767892,1749895847428,-151.0,0.00022191,7]
[365767893,1749895847437,-162.623748,0.00022191,7]
[365767894,1749895847447,-162.623748,0.00022191,7]
[365767895,1749895847456,-498.87,0.00022191,4]
[365767896,1749895847466,-151.0,0.00022191,7]
[365767897,1749895847475,-189.226578,0.00022191,7]
[365767898,1749895847484,-189.226578,0.00022191,7]
[365767899,1749895847498,-460.0,0.00022191,4]
[365767900,1749895847507,-460.0,0.00022191,4]
[365767901,1749895847516,-460.0,0.00022191,4]
[365767902,1749895847526,-460.0,0.00022191,4]
[365767903,1749895847535,-948.98,0.00022191,4]
[365767904,1749895847544,-460.0,0.00022191,4]
[365767905,1749895847553,-460.0,0.00022191,4]
[365767906,1749895847563,-460.0,0.00022191,4]
[365767907,1749895847572,-504.66,0.00022191,4]
[365767908,1749895847581,-460.0,0.00022191,4]
[365767909,1749895847591,-460.0,0.00022191,4]
[365767910,1749895847600,-354.76,0.00022191,4]
[365767911,1749895847609,-302.4894209,0.00022279,6]
[365767912,1749895847619,-2648.32,0.000223,7]
[365767913,1749895847628,-500.0,0.000223,2]
[365767914,1749895847637,-255.36138942,0.00022364,2]
[365767918,1749895904108,407.378444,0.00013699,2]
[365767919,1749895904347,407.378444,0.00020187,2]
[365767925,1749895977087,-166.7069979,0.00019543,2]
[365767927,1749896058901,-241.47574459,0.00019543,2]
[365767933,1749896278363,-152.11648481,0.00019367,2]
[365767936,1749896329669,-147.52680786,0.00019367,2]
[365767937,1749896329692,-107.58927212,0.0002008,2]
[365767947,1749896826134,-199.76219512,0.00019269,2]
[365767948,1749896826156,-212.724948,0.00019975,2]
[365767949,1749896826176,-161.693397,0.00020078,2]
[365767950,1749896826197,-754.41072803,0.0002008,2]
[365767951,1749896826216,-345.5617896,0.0002023,2]
[365767952,1749896826236,-797.413007,0.00020383,2]
[365767953,1749896826260,-300.0,0.00020998,2]
[365767954,1749896826280,-300.0,0.00020999,2]
[365767955,1749896826301,-1200.0,0.00020999,2]
[365767956,1749896826321,-300.0,0.00020999,2]
[365767957,1749896826339,-19954.9518795,0.00021,2]
[365767958,1749896826359,-355.81936138,0.00021094,2]
[365767959,1749896826380,-460.0,0.00021095,4]
[365767960,1749896826402,-460.0,0.00021095,2]
[365767961,1749896826423,-460.0,0.00021095,4]
[365767962,1749896826445,-460.0,0.00021095,4]
[365767963,1749896826465,-2514.17759859,0.00021095,2]
[365767964,1749896826488,-325.950769,0.000211,2]
[365767965,1749896826509,-325.950769,0.000211,2]
[365767966,1749896826530,-159.92061473,0.00021266,2]
[365767967,1749896826550,-460.0,0.00021366,2]
[365767968,1749896826571,-460.0,0.00021366,4]
[365767969,1749896826592,-460.0,0.00021366,4]
[365767970,1749896826616,-488.64,0.00021366,4]
[365767971,1749896826640,-460.0,0.00021366,4]
[365767972,1749896826663,-460.0,0.00021366,4]
[365767973,1749896826687,-460.0,0.00021366,4]
[365767974,1749896826710,-460.0,0.00021366,4]
[365767975,1749896826733,-1047.03,0.00021366,4]
[365767976,1749896826757,-460.0,0.00021366,4]
[365767977,1749896826785,-460.0,0.00021366,4]
[365767978,1749896826809,-460.0,0.00021366,4]
[365767979,1749896826836,-643.87,0.00021366,4]
[365767980,1749896826860,-460.0,0.00021366,4]
[365767981,1749896826883,-460.0,0.00021366,4]
[365767982,1749896826907,-460.0,0.00021366,4]
[365767983,1749896826931,-460.0,0.00021366,4]
[365767984,1749896826954,-460.0,0.00021366,4]
[365767985,1749896826976,-460.0,0.00021366,4]
[365767986,1749896826999,-460.0,0.00021366,4]
[365767987,1749896827021,-460.0,0.00021366,4]
[365767988,1749896827048,-401.12433044,0.00021366,4]
[365767989,1749896827070,-440.0,0.00021366,4]
[365767990,1749896827092,-460.0,0.00021366,4]
[365767991,1749896827115,-460.0,0.00021366,4]
[365767992,1749896827136,-500.0,0.00021366,2]
[365767993,1749896827158,-500.0,0.00021366,2]
[365767994,1749896827180,-500.0,0.00021366,2]
[365767995,1749896827328,-500.0,0.00021366,2]
[365767996,1749896827348,-500.0,0.00021366,2]
[365767997,1749896827369,-325.23482509,0.00021366,2]
[365767998,1749896827389,-500.0,0.00021366,2]
[365767999,1749896827410,-500.0,0.00021366,2]
[365768000,1749896827431,-355.14350005,0.00021366,2]
[365768001,1749896827451,-419.38079119,0.00021366,2]
[365768002,1749896827472,-649.70442443,0.00021366,2]
[365768003,1749896827493,-500.0,0.00021366,2]
[365768004,1749896827516,-500.0,0.00021366,2]
[365768005,1749896827537,-196.59041465,0.00021366,2]
[365768006,1749896827564,-500.0,0.00021366,2]
[365768007,1749896827585,-435.90972739,0.00021366,2]
[365768008,1749896827606,-500.0,0.00021366,2]
[365768009,1749896827629,-500.0,0.00021366,2]
[365768010,1749896827659,-328.11219187,0.00021366,2]
[365768011,1749896827681,-500.0,0.00021366,2]
[365768012,1749896827704,-470.74959736,0.00021366,2]
[365768013,1749896834104,-29.25040264,0.00021366,2]
[365768014,1749896834127,-500.0,0.00021366,2]
[365768015,1749896834150,-500.0,0.00021366,2]
[365768016,1749896834173,-500.0,0.00021366,2]
[365768017,1749896834196,-500.0,0.00021366,2]
[365768018,1749896834218,-160.80057586,0.00021366,2]
[365768020,1749896853095,-339.19942414,0.00021366,2]
[365768021,1749896853122,-170.69932154,0.00021366,2]
[365768022,1749896853152,-500.0,0.00021366,2]
[365768023,1749896853180,-479.20137495,0.00021366,2]
[365768024,1749896853217,-489.75483355,0.00021366,2]
[365768028,1749896922176,150.999999,0.0002,120]
[365768029,1749896922479,153.129014,0.00024959,120]
[365768030,1749896928723,366.640599,0.00013699,2]
[365768031,1749896946109,-6855.47377683,0.00019,2]
[365768032,1749896946135,-150.0,0.00019266,2]
[365768033,1749896946161,-366.640599,0.00020187,2]
[365768034,1749896960091,-430.5606082,0.00020559,2]
[365768035,1749896960118,-330.29927164,0.000208,4]
[365768036,1749896960144,-330.29927154,0.000208,4]
[365768037,1749896960168,-330.29927154,0.000208,4]
[365768038,1749896960192,-330.29927154,0.000208,4]
[365768039,1749896960215,-330.29927154,0.000208,4]
[365768040,1749896960239,-330.29927154,0.000208,4]
[365768041,1749896960262,-79.34219956,0.00020934,4]
[365768042,1749896960736,116564.4502189,0.00024,120]
[365768043,1749896973211,-250.95707198,0.00020934,4]
[365768044,1749896973233,-300.0,0.00021094,2]
[365768045,1749896973255,-460.0,0.00021095,4]
[365768046,1749896973280,-949.04292802,0.00021095,4]
[365768081,1749897032166,-159.92061473,0.00020995,2]
[365768082,1749897032187,-979.10238157,0.00020995,2]
[365768083,1749897032198,-480.0,0.00021093,2]
[365768084,1749897032208,-300.0,0.00021094,2]
[365768085,1749897032217,-412524.66388,0.00021094,2]
[365768087,1749897032227,-54.35707198,0.00021095,4]
[365768089,1749897032236,-460.0,0.00021095,4]
[365768091,1749897032245,-460.0,0.00021095,4]
[365768093,1749897032255,-460.0,0.00021095,4]
[365768094,1749897032264,-460.0,0.00021095,4]
[365768095,1749897032274,-460.0,0.00021095,4]
[365768096,1749897032283,-460.0,0.00021095,4]
[365768097,1749897032292,-460.0,0.00021095,4]
[365768098,1749897032302,-460.0,0.00021095,4]
[365768099,1749897032310,-460.0,0.00021095,4]
[365768100,1749897032321,-460.0,0.00021095,4]
[365768101,1749897032330,-460.0,0.00021095,4]
[365768102,1749897032340,-460.0,0.00021095,4]
[365768103,1749897032349,-460.0,0.00021095,4]
[365768104,1749897032358,-748.19,0.000211,2]
[365768105,1749897032367,-330.29927154,0.00021107,4]
[365768106,1749897032377,-330.29927154,0.00021279,5]
[365768107,1749897032387,-460.0,0.00021366,4]
[365768108,1749897032396,-460.0,0.00021366,4]
[365768109,1749897032406,-460.0,0.00021366,4]
[365768110,1749897032415,-460.0,0.00021366,4]
[365768111,1749897032424,-460.0,0.00021366,4]
[365768112,1749897032434,-460.0,0.00021366,4]
[365768113,1749897032444,-460.0,0.00021366,4]
[365768114,1749897032453,-460.0,0.00021366,4]
[365768115,1749897032462,-460.0,0.00021366,4]
[365768116,1749897032471,-460.0,0.00021366,4]
[365768117,1749897032480,-460.0,0.00021366,4]
[365768118,1749897032490,-460.0,0.00021366,4]
[365768119,1749897032499,-460.0,0.00021366,4]
[365768120,1749897032508,-460.0,0.00021366,4]
[365768121,1749897032518,-460.0,0.00021366,4]
[365768122,1749897032527,-460.0,0.00021366,4]
[365768123,1749897032537,-460.0,0.00021366,4]
[365768124,1749897032546,-460.0,0.00021366,4]
[365768125,1749897032555,-460.0,0.00021366,4]
[365768126,1749897032565,-617.05,0.00021366,4]
[365768127,1749897032574,-460.0,0.00021366,4]
[365768128,1749897032583,-460.0,0.00021366,4]
[365768129,1749897032593,-460.0,0.00021366,2]
[365768130,1749897032602,-460.0,0.00021367,4]
[365768131,1749897032613,-437.32674212,0.00021367,4]
[365768132,1749897032623,-460.0,0.00021367,4]
[365768133,1749897032634,-460.0,0.00021367,4]
[365768134,1749897032644,-460.0,0.00021367,4]
[365768135,1749897032653,-460.0,0.00021367,2]
[365768136,1749897032663,-460.0,0.00021367,4]
[365768137,1749897032672,-460.0,0.00021367,4]
[365768138,1749897032682,-161.132,0.00021368,2]
[365768139,1749897032691,-519.1778053,0.00021368,4]
[365768140,1749897032700,-460.0,0.00021368,4]
[365768141,1749897032709,-460.0,0.00021368,4]
[365768142,1749897032719,-151.0,0.00021369,2]
[365768143,1749897032728,-151.0,0.00021369,2]
[365768144,1749897032738,-151.0,0.00021369,2]
[365768145,1749897032747,-251.57842,0.00021369,2]
[365768146,1749897032757,-251.57842,0.00021369,2]
[365768147,1749897032766,-460.0,0.00021369,4]
[365768148,1749897032776,-1003.4,0.00021369,4]
[365768149,1749897032788,-460.0,0.00021369,4]
[365768150,1749897032798,-460.0,0.00021369,4]
[365768151,1749897032806,-460.0,0.00021369,4]
[365768152,1749897032816,-460.0,0.00021369,4]
[365768153,1749897032825,-460.0,0.00021369,4]
[365768154,1749897032834,-460.0,0.00021369,4]
[365768155,1749897032844,-460.0,0.00021369,4]
[365768156,1749897032853,-460.0,0.00021369,4]
[365768157,1749897032864,-460.0,0.00021369,4]
[365768158,1749897032874,-621.35584132,0.00021369,2]
[365768159,1749897032884,-330.29927154,0.00021452,5]
[365768160,1749897032893,-1351.04,0.00021483,2]
[365768161,1749897032902,-449.0,0.00021502,2]
[365768162,1749897032911,-330.29927154,0.00021624,5]
[365768163,1749897032921,-391.62536534,0.0002164,4]
[365768164,1749897032930,-460.0,0.0002164,4]
[365768165,1749897032940,-213.62075488,0.0002164,4]
[365768166,1749897032950,-460.0,0.0002164,4]
[365768167,1749897032959,-460.0,0.0002164,4]
[365768168,1749897032968,-460.0,0.0002164,4]
[365768169,1749897032978,-460.0,0.0002164,4]
[365768170,1749897032987,-460.0,0.0002164,4]
[365768171,1749897032996,-460.0,0.0002164,4]
[365768172,1749897033006,-460.0,0.0002164,4]
[365768173,1749897033015,-460.0,0.0002164,4]
[365768174,1749897033026,-460.0,0.0002164,4]
[365768175,1749897033036,-460.0,0.0002164,4]
[365768176,1749897033046,-460.0,0.0002164,4]
[365768177,1749897033056,-460.0,0.0002164,4]
[365768178,1749897033066,-460.0,0.0002164,4]
[365768179,1749897033076,-460.0,0.0002164,4]
[365768180,1749897033085,-617.05,0.0002164,4]
[365768181,1749897033095,-460.0,0.0002164,4]
[365768182,1749897033105,-460.0,0.0002164,4]
[365768183,1749897033115,-460.0,0.0002164,2]
[365768184,1749897033125,-460.0,0.00021641,4]
[365768185,1749897033134,-460.0,0.00021641,4]
[365768186,1749897033144,-460.0,0.00021641,4]
[365768187,1749897033154,-460.0,0.00021641,2]
[365768188,1749897033164,-460.0,0.00021642,4]
[365768189,1749897033174,-460.0,0.00021642,4]
[365768190,1749897033184,-460.0,0.00021643,4]
[365768191,1749897033193,-1003.4,0.00021643,4]
[365768192,1749897033203,-460.0,0.00021643,4]
[365768193,1749897033213,-460.0,0.00021643,4]
[365768194,1749897033224,-460.0,0.00021643,4]
[365768195,1749897033235,-460.0,0.00021643,4]
[365768196,1749897033247,-460.0,0.00021643,4]
[365768197,1749897033257,-460.0,0.00021643,4]
[365768198,1749897033267,-460.0,0.00021643,4]
[365768199,1749897033277,-389.95897917,0.00021643,4]
[365768200,1749897033287,-979.10238154,0.00021671,2]
[365768201,1749897033297,-449.0,0.00021685,2]
[365768202,1749897033306,-160.0,0.00021778,2]
[365768203,1749897033316,-160.0,0.00021778,2]
[365768204,1749897033325,-160.0,0.00021778,2]
[365768205,1749897033335,-160.0,0.00021778,2]
[365768206,1749897033344,-160.0,0.00021778,2]
[365768207,1749897033354,-229.82479369,0.00021778,2]
[365768208,1749897033364,-160.0,0.00021778,2]
[365768209,1749897033373,-845.10789306,0.00021778,2]
[365768210,1749897033383,-160.0,0.00021781,2]
[365768211,1749897033392,-160.0,0.00021781,2]
[365768212,1749897033402,-500.0,0.00021791,2]
[365768213,1749897033412,-500.0,0.00021791,2]
[365768214,1749897033421,-500.0,0.00021791,2]
[365768215,1749897033431,-185.63325795,0.00021791,2]
[365768216,1749897033442,-507.93420811,0.00021791,2]
[365768217,1749897033452,-500.0,0.00021791,2]
[365768218,1749897033461,-425.3457991,0.00021791,2]
[365768219,1749897033471,-324.37564347,0.00021791,2]
[365768220,1749897033480,-24900.0,0.00021792,2]
[365768221,1749897033490,-330.29927154,0.00021797,6]
[365768222,1749897033500,-351.78636016,0.0002182,2]
[365768223,1749897033510,-504.21706496,0.0002182,2]
[365768224,1749897033519,-500.0,0.0002182,2]
[365768225,1749897033529,-502.21862397,0.00021883,2]
[365768226,1749897033538,-500.0,0.000219,2]
[365768227,1749897033550,-460.0,0.00021914,4]
[365768228,1749897033559,-588.42,0.00021914,4]
[365768229,1749897033569,-460.0,0.00021914,4]
[365768230,1749897033579,-202.66,0.00021914,4]
[365768231,1749897033589,-579.22,0.00021914,4]
[365768232,1749897033598,-558.05,0.00021914,4]
[365768233,1749897033608,-460.0,0.00021914,4]
[365768234,1749897033618,-617.05,0.00021914,4]
[365768235,1749897033627,-460.0,0.00021914,4]
[365768236,1749897033637,-460.0,0.00021914,4]
[365768237,1749897033647,-298.29459163,0.00021914,2]
[365768238,1749897033657,-460.0,0.00021915,4]
[365768239,1749897033666,-460.0,0.00021915,4]
[365768240,1749897033676,-460.0,0.00021915,2]
[365768241,1749897033685,-325.950769,0.00021917,2]
[365768242,1749897033695,-325.950769,0.00021917,2]
[365768243,1749897033705,-460.0,0.00021917,4]
[365768244,1749897033717,-1003.4,0.00021917,4]
[365768245,1749897033727,-460.0,0.00021917,4]
[365768246,1749897033737,-460.0,0.00021917,4]
[365768247,1749897033747,-460.0,0.00021917,4]
[365768248,1749897033757,-460.0,0.00021917,4]
[365768249,1749897033768,-460.0,0.00021917,4]
[365768250,1749897033777,-460.0,0.00021917,4]
[365768251,1749897033787,-385.98,0.00021917,4]
[365768252,1749897033797,-511.28541419,0.00021956,2]
[365768253,1749897033808,-500.10828756,0.00021956,2]
[365768254,1749897033818,-330.29927154,0.00021969,6]
[365768255,1749897033827,-500.0,0.0002201,2]
[365768256,1749897033837,-330.29927154,0.00022141,6]
[365768257,1749897033848,-449.0,0.00022184,2]
[365768258,1749897033858,-460.0,0.00022188,4]
[365768259,1749897033871,-460.0,0.00022188,4]
[365768260,1749897033881,-533.92,0.00022188,4]
[365768261,1749897033890,-617.05,0.00022188,4]
[365768262,1749897033900,-249.48,0.00022188,4]
[365768263,1749897033909,-460.0,0.00022188,4]
[365768264,1749897033919,-460.0,0.00022189,4]
[365768265,1749897033929,-200.1,0.00022189,4]
[365768266,1749897033938,-460.0,0.00022189,2]
[365768267,1749897033949,-500.0,0.0002219,2]
[365768268,1749897033959,-160.0,0.0002219,2]
[365768269,1749897033969,-460.0,0.00022191,4]
[365768270,1749897033980,-1003.4,0.00022191,4]
[365768271,1749897033989,-460.0,0.00022191,4]
[365768272,1749897033999,-460.0,0.00022191,4]
[365768273,1749897034009,-460.0,0.00022191,4]
[365768274,1749897034018,-460.0,0.00022191,4]
[365768275,1749897034027,-460.0,0.00022191,4]
[365768276,1749897034037,-460.0,0.00022191,4]
[365768277,1749897034047,-748.19,0.000222,7]
[365768278,1749897034060,-2000.0,0.000223,4]
[365768279,1749897034079,-330.29927154,0.00022314,7]
[365768280,1749897034089,-979.10238154,0.00022348,2]
[365768281,1749897034100,-366.76250479,0.00022364,2]
[365768282,1749897034112,-1124.0,0.00022364,2]
[365768283,1749897034289,-317.0,0.00022364,3]
[365768284,1749897034300,-449.0,0.00022382,2]
[365768285,1749897034310,-151.0,0.00022417,7]
[365768286,1749897034319,-151.0,0.00022417,7]
[365768287,1749897034328,-1000.0,0.00022448,2]
[365768288,1749897034338,-460.0,0.00022462,4]
[365768289,1749897034348,-460.0,0.00022462,4]
[365768290,1749897034358,-617.05,0.00022462,4]
[365768291,1749897034369,-460.0,0.00022462,4]
[365768292,1749897034378,-460.0,0.00022463,4]
[365768293,1749897034387,-460.0,0.00022463,2]
[365768294,1749897034396,-166.741829,0.00022465,7]
[365768295,1749897034406,-151.0,0.00022465,7]
[365768296,1749897034415,-151.0,0.00022465,7]
[365768297,1749897034425,-151.0,0.00022465,7]
[365768298,1749897034435,-251.57842,0.00022465,7]
[365768299,1749897034445,-251.57842,0.00022465,7]
[365768300,1749897034455,-460.0,0.00022465,4]
[365768301,1749897034464,-1003.4,0.00022465,4]
[365768302,1749897034474,-460.0,0.00022465,4]
[365768303,1749897034483,-460.0,0.00022465,4]
[365768304,1749897034493,-460.0,0.00022465,4]
[365768305,1749897034502,-460.0,0.00022465,4]
[365768306,1749897034512,-460.0,0.00022465,4]
[365768307,1749897034522,-460.0,0.00022465,4]
[365768308,1749897034532,-500.0,0.00022466,2]
[365768309,1749897034542,-500.0,0.00022466,2]
[365768310,1749897034552,-500.0,0.00022466,2]
[365768311,1749897034561,-500.0,0.00022466,2]
[365768312,1749897034570,-420.82609791,0.00022466,2]
[365768313,1749897034580,-500.0,0.00022466,2]
[365768314,1749897034589,-500.0,0.00022466,2]
[365768315,1749897034599,-330.29927154,0.00022486,7]
[365768316,1749897034608,-449.0,0.00022498,2]
[365768317,1749897034617,-2002.0,0.000225,4]
[365768318,1749897034627,-207.4,0.00022602,2]
[365768319,1749897034636,-5000.0,0.00022602,2]
[365768320,1749897034646,-330.29927154,0.00022659,7]
[365768321,1749897034655,-460.0,0.00022736,4]
[365768322,1749897034664,-460.0,0.00022736,4]
[365768323,1749897034673,-617.05,0.00022736,4]
[365768324,1749897034683,-311.76,0.00022736,4]
[365768325,1749897034692,-460.0,0.00022737,4]
[365768326,1749897034702,-460.0,0.00022737,2]
[365768327,1749897034712,-460.0,0.00022739,4]
[365768328,1749897034721,-1003.4,0.00022739,4]
[365768329,1749897034731,-460.0,0.00022739,4]
[365768330,1749897034741,-460.0,0.00022739,4]
[365768331,1749897034750,-460.0,0.00022739,4]
[365768332,1749897034761,-460.0,0.00022739,4]
[365768333,1749897034770,-460.0,0.00022739,4]
[365768334,1749897034779,-445.88,0.00022739,4]
[365768335,1749897034789,-449.0,0.00022767,2]
[365768336,1749897034798,-330.29927154,0.00022831,8]
[365768337,1749897034807,-420.0,0.00022842,2]
[365768338,1749897034817,-449.0,0.00022862,2]
[365768339,1749897034826,-1563.0,0.00022938,2]
[365768340,1749897034835,-420.0,0.00022943,2]
[365768341,1749897034844,-153.38429643,0.0002295,2]
[365768342,1749897034854,-500.0,0.0002295,2]
[365768343,1749897034865,-319.0,0.00022986,2]
[365768344,1749897034875,-29291.70281587,0.00023,2]
[365768345,1749897034885,-330.29927154,0.00023003,8]
[365768346,1749897034895,-835.41710878,0.00023006,2]
[365768347,1749897034904,-213.28201367,0.00023006,2]
[365768348,1749897034913,-424.40141186,0.00023006,2]
[365768349,1749897034922,-12533.30537164,0.00023006,2]
[365768350,1749897034931,-460.0,0.0002301,4]
[365768351,1749897034940,-365.3,0.0002301,4]
[365768352,1749897034950,-617.05,0.0002301,4]
[365768353,1749897034961,-460.0,0.00023011,4]
[365768354,1749897034978,-460.0,0.00023011,2]
[365768355,1749897034987,-460.0,0.00023013,4]
[365768356,1749897034996,-1003.4,0.00023013,4]
[365768357,1749897035007,-460.0,0.00023013,4]
[365768358,1749897035016,-460.0,0.00023013,4]
[365768359,1749897035026,-460.0,0.00023013,4]
[365768360,1749897035036,-460.0,0.00023013,4]
[365768361,1749897035050,-460.0,0.00023013,4]
[365768362,1749897035061,-330.29927154,0.00023176,8]
[365768363,1749897035070,-369.0,0.00023205,2]
[365768364,1749897035080,-460.0,0.00023284,4]
[365768365,1749897035089,-617.05,0.00023284,4]
[365768366,1749897035099,-460.0,0.00023285,4]
[365768367,1749897035108,-563.68,0.00023285,2]
[365768368,1749897035117,-266.60222655,0.00023287,4]
[365768369,1749897035126,-1003.4,0.00023287,4]
[365768370,1749897035136,-460.0,0.00023287,4]
[365768371,1749897035145,-460.0,0.00023287,4]
[365768372,1749897035155,-460.0,0.00023287,4]
[365768373,1749897035164,-460.0,0.00023287,4]
[365768374,1749897035174,-460.0,0.00023287,4]
[365768375,1749897035183,-330.29927154,0.00023348,9]
[365768376,1749897035193,-748.19,0.000234,7]
[365768377,1749897035202,-504.02084371,0.00023436,2]
[365768378,1749897035306,-2198.06915629,0.00023436,2]
[365768379,1749897035316,-151.0,0.000235,10]
[365768380,1749897035326,-1292.186599,0.0002352,3]
[365768381,1749897035337,-330.29927154,0.00023521,9]
[365768382,1749897035348,-151.0,0.00023521,7]
[365768383,1749897035358,-151.0,0.00023521,7]
[365768384,1749897035367,-151.0,0.00023521,7]
[365768385,1749897035377,-151.0,0.00023521,7]
[365768386,1749897035386,-151.0,0.00023521,7]
[365768387,1749897035396,-251.57842,0.00023521,7]
[365768388,1749897035406,-251.57842,0.00023521,7]
[365768389,1749897035416,-198.06566968,0.00023558,4]
[365768423,1749897038111,-381.34346942,0.00021093,2]
[365768424,1749897038121,-500.0,0.00021093,2]